[Event "RUS Cup Final Women 2019"]
[Site "Khanty-Mansiysk"]
[Date "2019.12.05"]
[Round "1.1"]
[White "Gritsayeva, Oksana"]
[Black "Mironenko, Galina"]
[Result "1-0"]
[ECO "E11"]
[WhiteElo "2370"]
[BlackElo "2094"]
[Annotator "NA"]
[PlyCount "73"]
[EventDate "2019.12.05"]
[EventType "k.o."]
[EventCountry "RUS"]
[SourceTitle "playchess.com"]
[Source "ChessBase"]
[SourceQuality "1"]
[TimeControl "5400+30"]

1. d4 {[%emt 0:00:00]} Nf6 {[%emt 0:00:00]} 2. Nf3 {[%emt 0:00:00]} e6 {[%emt 0:00:00]} 3. c4 {[%emt 0:00:00]} Bb4+ {[%emt 0:00:03]} 4. Bd2 {[%emt 0:03:56]} Be7 {[%emt 0:03:17]} 5. Nc3 {[%emt 0:01:34]} d5 {[%emt 0:01:26]} 6. Bg5 {[%emt 0:01:38]} h6 {[%emt 0:01:09]} 7. Bxf6 {[%emt 0:02:23]} Bxf6 {[%emt 0:00:17]} 8. e3 {[%emt 0:01:04]} b6 {[%emt 0:01:47]} 9. Qd2 {[%emt 0:04:13]} Bb7 {[%emt 0:02:56]} 10. cxd5 {[%emt 0:03:40]} exd5 {[%emt 0:00:12]} 11. Be2 {[%emt 0:01:45]} Nd7 {[%emt 0:01:07]} 12. O-O {[%emt 0:00:46]} O-O {[%emt 0:01:08]} 13. Rac1 {[%emt 0:02:11]} a6 {[%emt 0:01:16]} 14. Bd3 {[%emt 0:06:27]} Re8 {[%emt 0:00:46]} 15. Rfe1 {[%emt 0:02:41]} c5 {[%emt 0:05:56]} 16. b3 {[%emt 0:03:04]} Rc8 {[%emt 0:04:26]} 17. Bf5 {[%emt 0:03:56]} c4 $11 {[%emt 0:18:34]} 18. e4 {[%emt 0:15:14]} dxe4 {[%emt 0:11:01]} 19. Nxe4 {[%emt 0:02:23]} Bxe4 {[%emt 0:02:58]} 20. Bxe4 {[%emt 0:01:06]} cxb3 {[%emt 0:11:32]} 21. Rxc8 {[%emt 0:01:01]} Qxc8 {[%emt 0:00:03]} 22. axb3 {[%emt 0:00:09]} Rd8 {[%emt 0:03:12]} 23. Rc1 {[%emt 0:06:59]} Qb8 {[%emt 0:04:09]} 24. Qc2 {[%emt 0:03:17]} Qd6 {[%emt 0:02:18]} 25. g3 {[%emt 0:01:47]} Nf8 {[%emt 0:02:40]} 26. Qe2 {[%emt 0:06:52]} Bxd4 {[%emt 0:03:21]} 27. Rc6 {[%emt 0:05:20]} Qd7 {[%emt 0:01:44]} 28. Qxa6 {[%emt 0:01:23]} Ne6 {[%emt 0:07:18]} 29. b4 {[%emt 0:09:41]} Ng5 {[%emt 0:04:51]} 30. Nxg5 {[%emt 0:00:33]} hxg5 {[%emt 0:00:13]} 31. Qc4 {[%emt 0:00:55]} b5 {[%emt 0:05:04]} 32. Qxb5 {[%emt 0:01:58]} Qe7 {[%emt 0:00:15]} 33. Qf5 {[%emt 0:02:22]} Qxb4 {[%emt 0:00:56]} 34. Rc7 {[%emt 0:01:13]} Bxf2+ {[%emt 0:00:32]} 35. Kg2 {[%emt 0:00:46]} Bd4 {[%emt 0:00:31]} 36. Qh7+ {[%emt 0:00:11]} Kf8 {[%emt 0:00:04]} 37. Qh8# {[%emt 0:00:05]} 1-0

[Event "RUS Cup Final Women 2019"]
[Site "Khanty-Mansiysk"]
[Date "2019.12.05"]
[Round "1.2"]
[White "Borisova, Ekaterina"]
[Black "Goltseva, Ekaterina"]
[Result "1/2-1/2"]
[ECO "A05"]
[WhiteElo "2344"]
[BlackElo "2297"]
[Annotator "NA"]
[PlyCount "80"]
[EventDate "2019.12.05"]
[EventType "k.o."]
[EventCountry "RUS"]
[SourceTitle "playchess.com"]
[Source "ChessBase"]
[SourceQuality "1"]
[TimeControl "5400+30"]

1. Nf3 {[%emt 0:00:00]} Nf6 {[%emt 0:00:12]} 2. g3 {[%emt 0:00:00]} d5 {[%emt 0:00:40]} 3. Bg2 {[%emt 0:00:00]} e6 {[%emt 0:00:59]} 4. O-O {[%emt 0:00:00]} c5 {[%emt 0:02:09]} 5. d4 {[%emt 0:00:10]} cxd4 {[%emt 0:01:20]} 6. Nxd4 {[%emt 0:00:30]} e5 {[%emt 0:00:56]} 7. Nb3 {[%emt 0:00:04]} Be6 {[%emt 0:00:39]} 8. Nc3 {[%emt 0:00:06]} Be7 {[%emt 0:01:05]} 9. f4 {[%emt 0:00:05]} exf4 {[%emt 0:00:42]} 10. gxf4 {[%emt 0:00:05]} g6 {[%emt 0:00:30]} 11. Nd4 {[%emt 0:00:05]} Nc6 {[%emt 0:07:34]} 12. Nxe6 {[%emt 0:00:05]} fxe6 {[%emt 0:00:05]} 13. e4 {[%emt 0:00:03]} dxe4 {[%emt 0:01:50]} 14. Nxe4 {[%emt 0:00:06]} Nxe4 {[%emt 0:08:38]} 15. Bxe4 {[%emt 0:00:49]} Qxd1 {[%emt 0:00:37]} 16. Rxd1 {[%emt 0:00:04]} Bc5+ {[%emt 0:01:59]} 17. Kg2 {[%emt 0:00:15]} Rd8 {[%emt 0:04:23]} 18. Rxd8+ {[%emt 0:10:50]} Kxd8 {[%emt 0:01:16]} 19. c3 {[%emt 0:00:06]} Kc7 {[%emt 0:09:45]} 20. b4 {[%emt 0:01:15]} Bd6 {[%emt 0:01:53]} 21. Be3 {[%emt 0:00:57]} Rf8 {[%emt 0:04:49]} 22. Rf1 {[%emt 0:00:16]} Ne7 {[%emt 0:10:54]} 23. c4 $11 {[%emt 0:11:38]} ({Don't blunder} 23. Bxa7 $2 b6 $19) 23... Nf5 {[%emt 0:02:00]} 24. Bd2 {[%emt 0:17:32]} Rd8 {[%emt 0:11:07]} 25. Kf3 {[%emt 0:04:32]} Be5 {[%emt 0:07:13]} 26. Ke2 {[%emt 0:03:10]} Bg7 {[%emt 0:01:23]} 27. Rc1 {[%emt 0:06:20]} Bh6 {[%emt 0:04:10]} 28. Rc3 {[%emt 0:10:18]} Rd4 {[%emt 0:02:43]} 29. Bxf5 {[%emt 0:00:11]} exf5 {[%emt 0:03:42]} 30. Rh3 {[%emt 0:04:07]} Bxf4 {[%emt 0:00:07]} 31. Rxh7+ {[%emt 0:00:07]} Kc6 {[%emt 0:00:51]} 32. Bxf4 {[%emt 0:02:41]} Rxf4 {[%emt 0:00:04]} 33. Kd3 {[%emt 0:00:03]} Rf3+ {[%emt 0:01:16]} 34. Kd4 {[%emt 0:00:05]} Rf4+ {[%emt 0:00:20]} 35. Kd3 {[%emt 0:00:05]} Rf3+ {[%emt 0:01:46]} 36. Kd4 {[%emt 0:00:05]} Rf4+ {[%emt 0:00:00]} 37. Kc3 {[%emt 0:00:07]} Rf3+ {[%emt 0:00:11]} 38. Kd4 {[%emt 0:03:17]} Rf4+ {[%emt 0:00:10]} 39. Kd3 {[%emt 0:00:04]} Rf3+ {[%emt 0:00:10]} 40. Kd4 {[%emt 0:00:03]} Rf4+ {[%emt 0:00:05] Ke4} 1/2-1/2

[Event "RUS Cup Final Women 2019"]
[Site "Khanty-Mansiysk"]
[Date "2019.12.06"]
[Round "1.2"]
[White "Garifullina, Leya"]
[Black "Charochkina, Daria"]
[Result "1-0"]
[ECO "B42"]
[WhiteElo "2308"]
[BlackElo "2355"]
[Annotator "NA"]
[PlyCount "70"]
[EventDate "2019.12.05"]
[EventType "k.o."]
[EventCountry "RUS"]
[SourceTitle "playchess.com"]
[Source "ChessBase"]
[SourceQuality "1"]
[TimeControl "5400+30"]

1. e4 {[%emt 0:00:00]} c5 {[%emt 0:00:00]} 2. Nf3 {[%emt 0:00:00]} e6 {[%emt 0:00:00]} 3. d4 {[%emt 0:00:00]} cxd4 {[%emt 0:00:00]} 4. Nxd4 {[%emt 0:00:02]} a6 {[%emt 0:00:00]} 5. Bd3 {[%emt 0:00:14]} g6 {[%emt 0:00:33]} 6. O-O {[%emt 0:05:10]} Bg7 {[%emt 0:00:00]} 7. Nf3 {[%emt 0:00:38]} Nc6 {[%emt 0:02:49]} 8. c4 {[%emt 0:02:08]} Nge7 {[%emt 0:01:07]} 9. Nc3 {[%emt 0:01:22]} O-O {[%emt 0:00:20]} 10. Bg5 {[%emt 0:04:20]} h6 {[%emt 0:13:15]} 11. Bh4 {[%emt 0:01:43]} b6 $14 {[%emt 0:03:50]} 12. Re1 {[%emt 0:03:11]} d6 {[%emt 0:02:41]} 13. Rc1 {[%emt 0:04:42]} Bb7 {[%emt 0:00:40]} 14. Bf1 {[%emt 0:00:52]} Rc8 {[%emt 0:27:13]} 15. Re2 {[%emt 0:03:59]} g5 {[%emt 0:07:58]} 16. Bg3 {[%emt 0:00:51]} f5 {[%emt 0:00:13]} 17. exf5 {[%emt 0:10:04]} e5 {[%emt 0:07:54]} 18. c5 {[%emt 0:07:10]} Nxf5 {[%emt 0:01:02]} 19. cxd6 {[%emt 0:03:22]} Ncd4 {[%emt 0:07:59]} 20. Nxd4 {[%emt 0:01:05]} exd4 {[%emt 0:00:22]} 21. Ne4 {[%emt 0:01:29]} Nxg3 {[%emt 0:01:53]} 22. hxg3 {[%emt 0:00:22]} Bd5 {[%emt 0:04:26]} 23. Re1 {[%emt 0:03:08]} b5 {[%emt 0:01:21]} 24. b3 {[%emt 0:01:55]} Qd7 {[%emt 0:07:08]} 25. Bd3 {[%emt 0:02:06]} Bxe4 {[%emt 0:02:42]} 26. Rxc8 {[%emt 0:00:37]} Rxc8 {[%emt 0:00:04]} 27. Rxe4 {[%emt 0:00:51]} Qxd6 {[%emt 0:00:03]} 28. Qg4 {[%emt 0:02:05]} Rf8 {[%emt 0:01:48]} 29. Re6 {[%emt 0:03:20]} Qc5 {[%emt 0:02:17]} 30. Qe4 {[%emt 0:03:14]} Rf7 {[%emt 0:00:04]} 31. Rxa6 {[%emt 0:03:34]} Qe5 {[%emt 0:04:41]} 32. Ra8+ {[%emt 0:00:44]} Rf8 {[%emt 0:00:11]} 33. Qh7+ {[%emt 0:00:21]} Kf7 {[%emt 0:00:03]} 34. Ra7+ {[%emt 0:00:04]} Ke6 {[%emt 0:01:05]} 35. Qxg7 {[%emt 0:00:21]} Kd5 1-0

[Event "RUS Cup Final Women 2019"]
[Site "Khanty-Mansiysk"]
[Date "2019.12.06"]
[Round "1.2"]
[White "Afonasieva, Anna"]
[Black "Guseva, Marina"]
[Result "0-1"]
[ECO "A03"]
[WhiteElo "2302"]
[BlackElo "2373"]
[Annotator "RC"]
[PlyCount "86"]
[EventDate "2019.12.05"]
[EventType "k.o."]
[EventCountry "RUS"]
[SourceTitle "playchess.com"]
[Source "ChessBase"]
[SourceQuality "1"]
[TimeControl "5400+30"]

1. f4 {[%emt 0:00:00]} d5 {[%emt 0:00:00]} 2. Nf3 {[%emt 0:00:00]} g6 {[%emt 0:02:03]} 3. g3 {[%emt 0:00:48]} Bg7 {[%emt 0:00:05]} 4. Bg2 {[%emt 0:00:05]} Nh6 {[%emt 0:00:44]} 5. O-O {[%emt 0:00:46]} c5 {[%emt 0:02:34]} 6. d3 {[%emt 0:00:29]} d4 {[%emt 0:00:28]} 7. Qe1 {[%emt 0:00:58]} Nf5 {[%emt 0:12:28]} 8. a4 {[%emt 0:03:14]} Nc6 {[%emt 0:02:16]} 9. Na3 {[%emt 0:00:50]} O-O {[%emt 0:09:12]} 10. Nc4 {[%emt 0:04:24]} Nb4 {[%emt 0:03:06]} 11. Qd1 {[%emt 0:05:56]} Nd5 {[%emt 0:05:47]} 12. e4 {[%emt 0:15:46]} dxe3 {[%emt 0:00:09]} 13. c3 {[%emt 0:00:28]} Qc7 {[%emt 0:09:28]} 14. Qe2 {[%emt 0:04:04]} b6 {[%emt 0:08:46]} 15. Nh4 {[%emt 0:14:14]} Bb7 {[%emt 0:00:04]} 16. Nxf5 {[%emt 0:02:21]} gxf5 {[%emt 0:00:04]} 17. Bxd5 {[%emt 0:01:33]} Bxd5 {[%emt 0:00:04]} 18. Nxe3 {[%emt 0:00:05]} Qd7 {[%emt 0:01:07]} 19. Qh5 {[%emt 0:07:07]} e6 {[%emt 0:06:55]} 20. g4 {[%emt 0:01:52]} fxg4 {[%emt 0:00:21]} 21. f5 {[%emt 0:01:27]} f6 {[%emt 0:00:47]} 22. Qxg4 {[%emt 0:07:33]} exf5 {[%emt 0:12:38]} 23. Qh4 {[%emt 0:05:41]} Rae8 {[%emt 0:05:35]} 24. a5 {[%emt 0:15:28]} Bc6 {[%emt 0:09:40]} 25. axb6 {[%emt 0:02:49]} axb6 {[%emt 0:00:03]} 26. Kf2 {[%emt 0:03:28]} Kh8 {[%emt 0:03:35]} 27. Rg1 {[%emt 0:00:16]} f4 {[%emt 0:01:22]} 28. Qxf4 {[%emt 0:01:08]} f5 {[%emt 0:00:05]} 29. d4 {[%emt 0:01:00]} cxd4 {[%emt 0:00:40]} 30. cxd4 {[%emt 0:00:07]} Re4 {[%emt 0:00:24]} 31. Qg5 {[%emt 0:00:20]} f4 {[%emt 0:00:43]} 32. d5 {[%emt 0:01:08]} fxe3+ {[%emt 0:00:05]} 33. Ke1 {[%emt 0:00:08]} Bxd5 {[%emt 0:01:14]} 34. Ra3 {[%emt 0:00:07]} Qf7 {[%emt 0:02:38]} 35. Bxe3 {[%emt 0:00:47]} Re5 {[%emt 0:01:02]} 36. Qg3 {[%emt 0:00:28]} Rf5 {[%emt 0:00:19]} 37. Kd2 {[%emt 0:00:35]} Be4 {[%emt 0:00:50]} 38. Rc3 {[%emt 0:00:51]} Qd7+ {[%emt 0:00:23]} 39. Ke1 {[%emt 0:00:11]} Rd5 {[%emt 0:00:41]} 40. Rc1 {[%emt 0:00:46]} Bf3 {[%emt 0:00:24]} 41. Qc7 {[%emt 0:00:36]} Rd1+ {[%emt 0:00:10]} 42. Kf2 {[%emt 0:00:26]} Bc6+ {[%emt 0:00:17]} 43. Ke2 {[%emt 0:00:29]} Qd3# {[%emt 0:00:05]} 0-1

[Event "RUS Cup Final Women 2019"]
[Site "Khanty-Mansiysk"]
[Date "2019.12.06"]
[Round "1.2"]
[White "Goltseva, Ekaterina"]
[Black "Borisova, Ekaterina"]
[Result "1-0"]
[ECO "A15"]
[WhiteElo "2297"]
[BlackElo "2344"]
[Annotator "NA"]
[PlyCount "79"]
[EventDate "2019.12.05"]
[EventType "k.o."]
[EventCountry "RUS"]
[SourceTitle "playchess.com"]
[Source "ChessBase"]
[SourceQuality "1"]
[TimeControl "5400+30"]

1. c4 {[%emt 0:00:00]} Nf6 {[%emt 0:00:00]} 2. Nf3 {[%emt 0:01:03]} e6 {[%emt 0:00:00]} 3. e3 {[%emt 0:02:24]} d5 {[%emt 0:00:00]} 4. b3 {[%emt 0:01:06]} Be7 {[%emt 0:05:35]} 5. Bb2 {[%emt 0:03:29]} b6 {[%emt 0:00:04]} 6. d4 {[%emt 0:06:43]} Bb7 {[%emt 0:00:09]} 7. Bd3 {[%emt 0:00:34]} O-O {[%emt 0:01:34]} 8. Nbd2 {[%emt 0:05:49]} c5 {[%emt 0:01:55]} 9. O-O {[%emt 0:00:26]} cxd4 {[%emt 0:02:11]} 10. exd4 {[%emt 0:02:16]} dxc4 {[%emt 0:00:03]} 11. bxc4 $11 {[%emt 0:02:27]} Nc6 {[%emt 0:00:04]} 12. Rc1 {[%emt 0:02:02]} Rc8 {[%emt 0:02:18]} 13. Qe2 {[%emt 0:03:53]} Qd6 {[%emt 0:21:57]} 14. Rfd1 {[%emt 0:14:42]} Rfd8 {[%emt 0:03:43]} 15. Nf1 {[%emt 0:06:25]} Nb4 {[%emt 0:13:57]} 16. Bb1 {[%emt 0:01:58]} Ba6 {[%emt 0:00:07]} 17. Ne5 {[%emt 0:01:55]} Qb8 {[%emt 0:12:57]} 18. a3 {[%emt 0:14:25]} Nc6 {[%emt 0:06:27]} 19. Nxc6 {[%emt 0:07:32]} Rxc6 {[%emt 0:00:25]} 20. d5 {[%emt 0:01:20]} Rxd5 {[%emt 0:08:40]} 21. Rxd5 {[%emt 0:03:22]} Nxd5 {[%emt 0:00:05]} 22. Qg4 {[%emt 0:11:27]} Nf6 {[%emt 0:02:08]} 23. Bxf6 {[%emt 0:01:08]} Bxf6 {[%emt 0:00:07]} 24. Bxh7+ {[%emt 0:01:48]} Kf8 {[%emt 0:00:05]} 25. Ne3 {[%emt 0:00:30]} g6 {[%emt 0:06:35]} 26. Qf3 {[%emt 0:00:29]} Bb2 {[%emt 0:01:08]} 27. Rb1 {[%emt 0:01:13]} Bb7 {[%emt 0:01:06]} 28. Bxg6 {[%emt 0:02:37]} Rc7 {[%emt 0:00:54]} 29. Qf4 {[%emt 0:00:08]} Bg7 {[%emt 0:01:24]} 30. Rd1 {[%emt 0:00:47]} Qc8 {[%emt 0:00:30]} 31. Be4 {[%emt 0:00:37]} Ba6 {[%emt 0:01:09]} 32. Qd6+ {[%emt 0:00:37]} Kg8 {[%emt 0:01:04]} 33. Bd3 {[%emt 0:00:13]} Rc5 {[%emt 0:00:30]} 34. Be2 {[%emt 0:00:35]} Be5 {[%emt 0:01:10]} 35. Qe7 {[%emt 0:00:15]} Bc7 {[%emt 0:01:25]} 36. Rd7 {[%emt 0:00:31]} Qf8 {[%emt 0:00:05]} 37. Rxc7 {[%emt 0:00:17]} Rxc7 {[%emt 0:00:04]} 38. Qxc7 {[%emt 0:00:05]} Qxa3 {[%emt 0:00:02]} 39. Qxa7 {[%emt 0:00:42]} Qa5 {[%emt 0:00:25]} 40. Bf1 {[%emt 0:00:24]} 1-0

[Event "RUS Cup Final Women 2019"]
[Site "Khanty-Mansiysk"]
[Date "2019.12.05"]
[Round "1.3"]
[White "Charochkina, Daria"]
[Black "Garifullina, Leya"]
[Result "1/2-1/2"]
[ECO "E46"]
[WhiteElo "2355"]
[BlackElo "2308"]
[Annotator "NA"]
[PlyCount "44"]
[EventDate "2019.12.05"]
[EventType "k.o."]
[EventCountry "RUS"]
[SourceTitle "playchess.com"]
[Source "ChessBase"]
[SourceQuality "1"]
[TimeControl "5400+30"]

1. d4 {[%emt 0:00:00]} Nf6 {[%emt 0:00:00]} 2. c4 {[%emt 0:00:00]} e6 {[%emt 0:00:00]} 3. Nc3 {[%emt 0:00:00]} Bb4 {[%emt 0:00:13]} 4. e3 {[%emt 0:00:00]} O-O {[%emt 0:00:17]} 5. Bd2 {[%emt 0:00:09]} b6 {[%emt 0:06:33]} 6. Rc1 {[%emt 0:01:51]} Bb7 {[%emt 0:01:59]} 7. Nf3 {[%emt 0:00:14]} Bxc3 {[%emt 0:01:41]} 8. Bxc3 {[%emt 0:00:13]} Ne4 {[%emt 0:00:07]} 9. d5 {[%emt 0:12:50]} Nf6 {[%emt 0:08:50]} 10. Rc2 {[%emt 0:02:05]} a5 {[%emt 0:10:58]} 11. Bd3 {[%emt 0:12:28]} exd5 {[%emt 0:04:02]} 12. Bxf6 {[%emt 0:02:29]} Qxf6 {[%emt 0:00:18]} 13. cxd5 {[%emt 0:00:06]} Na6 {[%emt 0:01:06]} 14. a3 {[%emt 0:05:55]} Nc5 {[%emt 0:02:59]} 15. Bc4 {[%emt 0:00:09]} a4 {[%emt 0:04:33]} 16. O-O {[%emt 0:00:12]} Rfe8 {[%emt 0:01:19]} 17. Rd2 $11 {[%emt 0:03:14]} Re4 {[%emt 0:05:16]} 18. Nd4 {[%emt 0:01:39]} Rf8 {[%emt 0:06:15]} 19. Re1 {[%emt 0:04:48]} Re5 {[%emt 0:03:25]} 20. Nf3 {[%emt 0:05:37]} Re4 {[%emt 0:00:37]} 21. Nd4 {[%emt 0:00:17]} Re5 {[%emt 0:00:08]} 22. Nf3 {[%emt 0:07:21]} Re4 {[%emt 0:00:18]} 1/2-1/2

[Event "RUS Cup Final Women 2019"]
[Site "Khanty-Mansiysk"]
[Date "2019.12.05"]
[Round "1.4"]
[White "Guseva, Marina"]
[Black "Afonasieva, Anna"]
[Result "1-0"]
[ECO "D11"]
[WhiteElo "2373"]
[BlackElo "2302"]
[Annotator "NA"]
[PlyCount "81"]
[EventDate "2019.12.05"]
[EventType "k.o."]
[EventCountry "RUS"]
[SourceTitle "playchess.com"]
[Source "ChessBase"]
[SourceQuality "1"]
[TimeControl "5400+30"]

1. d4 {[%emt 0:00:00]} d5 {[%emt 0:00:00]} 2. c4 {[%emt 0:00:00]} c6 {[%emt 0:00:00]} 3. Nf3 {[%emt 0:00:00]} Nf6 {[%emt 0:00:00]} 4. e3 {[%emt 0:00:00]} e6 {[%emt 0:00:00]} 5. Bd3 {[%emt 0:00:00]} Nbd7 {[%emt 0:00:00]} 6. b3 {[%emt 0:00:00]} Bd6 {[%emt 0:00:20]} 7. O-O {[%emt 0:00:04]} O-O {[%emt 0:00:05]} 8. Bb2 {[%emt 0:00:03]} b6 {[%emt 0:01:03]} 9. Nbd2 {[%emt 0:00:08]} Bb7 {[%emt 0:01:13]} 10. Ne5 {[%emt 0:00:18]} Rc8 {[%emt 0:00:27]} 11. f4 {[%emt 0:01:08]} c5 {[%emt 0:00:19]} 12. Qe2 {[%emt 0:01:09]} Ne4 {[%emt 0:01:50]} 13. cxd5 {[%emt 0:10:35]} exd5 {[%emt 0:02:36]} 14. Nxe4 {[%emt 0:11:47]} dxe4 {[%emt 0:00:07] [#]} 15. Bc4 $1 {[%emt 0:00:18]} Nf6 {[%emt 0:03:39]} 16. Rad1 {[%emt 0:09:55]} Bd5 {[%emt 0:20:49]} 17. dxc5 {[%emt 0:16:37]} Bxc5 {[%emt 0:02:26]} 18. Ng4 $18 {[%emt 0:02:26]} Bxc4 {[%emt 0:02:43]} 19. bxc4 {[%emt 0:00:05]} Qe7 {[%emt 0:15:09]} 20. Bxf6 {[%emt 0:17:42]} gxf6 {[%emt 0:00:56]} 21. Nh6+ {[%emt 0:02:24]} Kh8 {[%emt 0:00:14]} 22. Rd5 {[%emt 0:00:18]} Rfd8 {[%emt 0:07:18]} 23. Rfd1 {[%emt 0:06:21]} Rxd5 {[%emt 0:08:58]} 24. cxd5 {[%emt 0:00:07]} Qd7 {[%emt 0:01:51]} 25. g4 {[%emt 0:00:08]} Bb4 {[%emt 0:07:57]} 26. Nf5 {[%emt 0:02:07]} Bc3 {[%emt 0:02:56]} 27. h3 {[%emt 0:07:50]} b5 {[%emt 0:03:42]} 28. Qc2 {[%emt 0:01:17]} Rc4 {[%emt 0:00:43]} 29. d6 {[%emt 0:00:27]} a5 {[%emt 0:01:55]} 30. Kh2 {[%emt 0:02:42]} a4 {[%emt 0:06:56]} 31. a3 {[%emt 0:00:41]} Ba5 {[%emt 0:02:48]} 32. Qb2 {[%emt 0:00:20]} Bd8 {[%emt 0:00:34]} 33. Rd5 {[%emt 0:01:49]} b4 {[%emt 0:01:52]} 34. axb4 {[%emt 0:00:47]} Qc6 {[%emt 0:01:57]} 35. Rd2 {[%emt 0:00:30]} Qb5 {[%emt 0:00:41]} 36. d7 {[%emt 0:02:06]} Qb6 {[%emt 0:01:50]} 37. Qa2 {[%emt 0:04:47]} Qxb4 {[%emt 0:01:46]} 38. Rb2 {[%emt 0:00:05]} Qc5 {[%emt 0:00:29]} 39. Rb8 {[%emt 0:00:44]} Rc2+ {[%emt 0:00:33]} 40. Kg3 {[%emt 0:00:07]} Qc7 {[%emt 0:00:41]} 41. Qxf7 {[%emt 0:00:53]} 1-0

[Event "RUS Cup Final Women 2019"]
[Site "Khanty-Mansiysk"]
[Date "2019.12.07"]
[Round "2.1"]
[White "Garifullina, Leya"]
[Black "Guseva, Marina"]
[Result "0-1"]
[ECO "B90"]
[WhiteElo "2308"]
[BlackElo "2373"]
[Annotator "NA"]
[PlyCount "96"]
[EventDate "2019.12.05"]
[EventType "k.o."]
[EventCountry "RUS"]
[SourceTitle "playchess.com"]
[Source "ChessBase"]
[SourceQuality "1"]
[TimeControl "5400+30"]

1. e4 {[%emt 0:00:00]} c5 {[%emt 0:00:00]} 2. Nf3 {[%emt 0:00:00]} d6 {[%emt 0:00:00]} 3. d4 {[%emt 0:00:00]} cxd4 {[%emt 0:00:00]} 4. Nxd4 {[%emt 0:00:02]} Nf6 {[%emt 0:00:00]} 5. Nc3 {[%emt 0:00:08]} a6 {[%emt 0:00:00]} 6. h3 {[%emt 0:00:07]} e5 {[%emt 0:00:00]} 7. Nde2 {[%emt 0:00:07]} h5 {[%emt 0:00:00] B90: Sicilian Najdorf: Unusual White 6th moves, 6 Be3 Ng4 and 6 Be3 e5} 8. Bg5 {[%emt 0:00:06]} (8. g3 Nbd7 9. Bg2 b5 10. O-O Bb7 11. a4 b4 12. Nd5 Nxd5 13. exd5 Be7 14. a5 Rb8 15. Bd2 {1-0 (36) Wei,Y (2721)-Vachier Lagrave,M (2774) chess.com INT 2019}) 8... Be6 {[%emt 0:00:00]} 9. Bxf6 {[%emt 0:00:07]} Qxf6 {[%emt 0:00:03]} 10. Nd5 {[%emt 0:00:06]} Qd8 {[%emt 0:00:04]} 11. Nec3 {[%emt 0:00:06]} g6 {[%emt 0:00:04]} 12. Bc4 {[%emt 0:00:18]} Bh6 {[%emt 0:00:05]} 13. O-O {[%emt 0:00:06]} O-O {[%emt 0:00:43]} 14. a4 {[%emt 0:01:11]} Nc6 {[%emt 0:00:06] [#]} 15. Ne2 $146 {[%emt 0:01:24]} ({Predecessor:} 15. Qd3) 15... Rc8 {[%emt 0:11:22]} 16. Ba2 {[%emt 0:01:40]} Kg7 {[%emt 0:09:23]} 17. Kh1 {[%emt 0:03:16]} Qh4 {[%emt 0:07:42]} 18. f4 {[%emt 0:07:04]} Bg4 {[%emt 0:09:31]} 19. fxe5 $17 {[%emt 0:07:37]} dxe5 {[%emt 0:26:20]} 20. c3 {[%emt 0:08:15]} Be6 {[%emt 0:00:50]} 21. Ng1 {[%emt 0:04:11]} Rcd8 {[%emt 0:04:44]} 22. Qe1 {[%emt 0:09:12]} Qxe1 {[%emt 0:00:09]} 23. Rfxe1 {[%emt 0:00:06]} f5 {[%emt 0:01:26]} 24. Nc7 {[%emt 0:02:30]} Bxa2 {[%emt 0:00:17]} 25. Rxa2 {[%emt 0:00:05]} Kf7 {[%emt 0:05:38]} 26. Nd5 {[%emt 0:04:43]} fxe4 {[%emt 0:01:44]} 27. c4 {[%emt 0:00:17]} Ne7 {[%emt 0:06:13]} 28. Rxe4 {[%emt 0:06:03]} Nxd5 {[%emt 0:00:14]} 29. cxd5 {[%emt 0:00:05]} Rxd5 {[%emt 0:00:03]} 30. Nf3 {[%emt 0:01:02]} Bf4 {[%emt 0:01:49]} 31. g4 {[%emt 0:01:04]} hxg4 {[%emt 0:04:53]} 32. hxg4 {[%emt 0:00:04]} Rc8 {[%emt 0:01:44]} 33. b4 {[%emt 0:02:13]} Rc3 {[%emt 0:00:25]} 34. Kg2 {[%emt 0:01:23]} Kf6 {[%emt 0:01:12]} 35. Rae2 {[%emt 0:01:48]} Ra3 {[%emt 0:02:26]} 36. a5 {[%emt 0:03:06]} Rb3 {[%emt 0:00:32]} 37. Rf2 {[%emt 0:00:47]} g5 {[%emt 0:00:26]} 38. Rc2 {[%emt 0:01:37]} Rdd3 {[%emt 0:03:18]} 39. Ne1 {[%emt 0:04:01]} Rg3+ {[%emt 0:02:11]} 40. Kf1 {[%emt 0:00:18]} Rxg4 {[%emt 0:00:47]} 41. Rc7 {[%emt 0:00:29]} Kf5 {[%emt 0:00:16]} 42. Rec4 {[%emt 0:00:16]} Rh4 {[%emt 0:01:03]} 43. Rf7+ {[%emt 0:04:08]} Kg4 {[%emt 0:02:40]} 44. Rxb7 {[%emt 0:00:18]} Rh1+ {[%emt 0:00:14]} 45. Ke2 {[%emt 0:01:38]} Re3+ {[%emt 0:00:13]} 46. Kf2 {[%emt 0:00:19]} Rhxe1 {[%emt 0:00:22]} 47. Rc2 {[%emt 0:00:26]} Rh1 {[%emt 0:00:14]} 48. Rbc7 {[%emt 0:00:42]} Reh3 {[%emt 0:00:14]} 0-1